fUSD/lending_fUSD_20241030
["ID","MTS","AMOUNT","RATE_DAILY","PERIOD"]
[341065706,1730320425869,-500.0,0.00043769,30]
[341065707,1730320425893,-618.21848948,0.00043769,30]
[341065708,1730320427827,500.0,0.00043769,30]
[341065709,1730320428094,500.0,0.00043769,30]
[341065710,1730320428400,179.4,0.00043769,30]
[341065711,1730320430813,500.0,0.00043769,30]
[341065712,1730320663244,158.65,0.00015342,2]
[341067425,1730321432110,-890.5,0.00035499,2]
[341067426,1730321432123,-158.04400634,0.00035516,2]
[341067427,1730321432132,-158.65,0.00035616,2]
[341067428,1730321432143,-451.79579419,0.00035656,2]
[341067429,1730321432153,-2082.40580545,0.00035756,2]
[341067430,1730321432164,-577.45,0.00035756,2]
[341067431,1730321432173,-286.4101,0.00035759,2]
[341067432,1730321432182,-577.45,0.00035765,2]
[341067433,1730321432192,-577.45,0.00035775,2]
[341067434,1730321432201,-577.45,0.00035784,2]
[341067435,1730321432211,-577.45,0.00035794,2]
[341067436,1730321432220,-2052.09,0.00035794,2]
[341067437,1730321432230,-577.45,0.00035803,2]
[341067438,1730321432239,-577.45,0.00035812,2]
[341067439,1730321432249,-577.45,0.00035822,2]
[341067440,1730321432259,-577.45,0.00035831,2]
[341067441,1730321432269,-577.45,0.0003584,2]
[341067442,1730321432278,-577.45,0.0003585,2]
[341067443,1730321432287,-577.45,0.00035859,2]
[341067444,1730321432296,-577.45,0.00035869,2]
[341067445,1730321432305,-577.45,0.00035878,2]
[341067446,1730321432315,-577.45,0.00035887,2]
[341067447,1730321432325,-577.45,0.00035897,2]
[341067448,1730321432337,-577.45,0.00035906,2]
[341067449,1730321432348,-577.45,0.00035916,2]
[341067450,1730321432358,-150.0,0.00035916,2]
[341067451,1730321432368,-577.45,0.00035925,2]
[341067452,1730321432378,-577.45,0.00035934,2]
[341067453,1730321432387,-171.731,0.00035965,43]
[341067454,1730321432398,-500.0,0.000363,2]
[341067455,1730321432407,-156.77,0.00036696,2]
[341067456,1730321432416,-577.54,0.000371,2]
[341067457,1730321432425,-8221.88,0.00037288,30]
[341067459,1730321432435,-1000.0,0.00037326,2]
[341067461,1730321432444,-150.0,0.00037345,7]
[341067463,1730321432453,-188.96087081,0.00037374,2]
[341067465,1730321432465,-316.44912919,0.00037374,2]
[341067467,1730321432475,-161.6,0.00037409,2]
[341067469,1730321432484,-151.0,0.00037465,2]
[341067471,1730321432494,-1264.147,0.00037473,2]
[341067473,1730321432503,-463.531,0.00037473,2]
[341067475,1730321432513,-195.237,0.00037473,2]
[341067477,1730321432523,-560.733,0.00037473,2]
[341067479,1730321432533,-1557.15903053,0.00037473,2]
[341067480,1730321432545,-425.84096947,0.00037473,2]
[341067481,1730321432554,-1661.94806053,0.00037473,2]
[341067483,1730321432566,-253.05193947,0.00037473,2]
[341067484,1730321432575,-842.49623424,0.00037473,2]
[341067485,1730321432615,-2525.50376576,0.00037473,2]
[341067486,1730321432624,-1254.0,0.00037473,2]
[341067487,1730321432633,-2206.0,0.00037473,2]
[341067488,1730321432641,-811.0,0.00037473,2]
[341067489,1730321432650,-807.0,0.00037473,2]
[341067490,1730321432659,-151.153,0.00037473,2]
[341067491,1730321432668,-433.34,0.00037482,2]
[341067492,1730321432677,-23890.0,0.00037539,2]
[341067493,1730321432686,-1804.5777,0.00037582,2]
[341067494,1730321432696,-262.718,0.00037659,2]
[341067495,1730321432706,-2096.2278,0.00037659,2]
[341067496,1730321432716,-8943.1775,0.00037739,2]
[341067497,1730321432725,-455.1,0.00037749,3]
[341067498,1730321432736,-67608.8004,0.00037759,2]
[341067499,1730321432747,-890.5,0.00037762,2]
[341067500,1730321432757,-165.49,0.00038344,2]
[341067501,1730321432767,-414.28,0.00038356,2]
[341067502,1730321432777,-167.02,0.00038503,2]
[341067503,1730321432787,-500.0,0.00038999,2]
[341067504,1730321432798,-433.34,0.00039356,2]
[341067505,1730321432808,-890.5,0.00040026,2]
[341067506,1730321432818,-167.02,0.00040092,2]
[341067507,1730321432829,-2206.0,0.00040473,2]
[341067508,1730321432839,-602.41,0.00040473,2]
[341067509,1730321432849,-194.96,0.00040726,2]
[341067510,1730321432858,-13871.4159004,0.00041,2]
[341067511,1730321432870,-84736.5840996,0.00041,2]
[341067512,1730321432881,-150.0,0.0004101,2]
[341067513,1730321432890,-150.0,0.00041096,2]
[341067514,1730321432899,-157.0,0.00041096,2]
[341067515,1730321432909,-150.0,0.00041111,2]
[341067516,1730321432918,-150.0,0.00041188,2]
[341067517,1730321432928,-150.0,0.00041202,2]
[341067518,1730321432938,-150.0,0.00041214,2]
[341067519,1730321432949,-433.34,0.0004123,2]
[341067520,1730321432959,-251.21,0.00041238,2]
[341067521,1730321432970,-150.0,0.00041353,2]
[341067522,1730321432979,-150.0,0.00041367,2]
[341067523,1730321432988,-165.49,0.00041508,2]
[341067524,1730321432998,-167.02,0.00041681,2]
[341067525,1730321433007,-150.0,0.00041716,2]
[341067526,1730321433016,-882.35423855,0.00041739,2]
[341067527,1730321433025,-1000.0,0.00041779,2]
[341067528,1730321433034,-3463.4004,0.000418,2]
[341067529,1730321433044,-5711.0599,0.000418,2]
[341067530,1730321433053,-572.8108,0.000419,2]
[341067531,1730321433064,-28999.6546,0.000419,2]
[341067532,1730321433074,-1500.0,0.000419,2]
[341067533,1730321433083,-2500.0,0.000419,2]
[341067534,1730321433093,-310.17111383,0.000419,2]
[341067535,1730321433101,-150.0,0.00041965,2]
[341067536,1730321433113,-336.3191635,0.00041973,10]
[341067537,1730321433122,-500.0,0.00041973,10]
[341067538,1730321433131,-409.07831083,0.0004199,2]
[341067539,1730321433141,-153.36,0.0004199,2]
[341067540,1730321433150,-1000.0,0.00041992,2]
[341067541,1730321433160,-15449.09373959,0.00042,2]
[341067542,1730321433171,-23681.34999884,0.00042,2]
[341067543,1730321433187,-1337.15,0.00042,2]
[341067549,1730321438183,-1000.0,0.00041214,2]
[341067550,1730321438194,-450.0,0.0004123,2]
[341067551,1730321438204,-471.1016,0.00042,2]
[341067555,1730321440314,-1000.0,0.00041367,2]
[341067556,1730321440324,-2998.73156684,0.00042,2]
[341067557,1730321440491,-8002.20000003,0.00042,2]
[341067569,1730321444250,-601.70505398,0.00037773,120]
[341067570,1730321444260,-122.88494602,0.0004091,15]
[341067571,1730321444375,-73.45863726,0.0004091,15]
[341067572,1730321444385,-655.30598274,0.00041965,2]
[341067590,1730321446417,-1091.40989714,0.00042,2]
[341067591,1730321446480,-433.703648,0.00042,2]
[341067592,1730321446492,-43999.98159939,0.00042,2]
[341067607,1730321716075,155.93,0.00015342,2]
[341067609,1730321977168,5926.72,0.0002402,30]
[341067623,1730322632689,-340.0,0.00037,2]
[341067624,1730322632698,-1027.03584734,0.000374,2]
[341067625,1730322632708,-1383.586,0.00037473,2]
[341067626,1730322632717,-1044.155,0.00037473,2]
[341067627,1730322632727,-1040.48909,0.000375,22]
[341067628,1730322632736,-1027.03584732,0.000383,2]
[341067629,1730322632746,-519.78,0.000384,2]
[341067630,1730322632755,-8179.54310827,0.00038702,2]
[341067631,1730322632764,-818.8,0.00038702,2]
[341067632,1730322632775,-152.0,0.00038789,3]
[341067633,1730322632786,-201.832,0.0003963,55]
[341067634,1730322632797,-4996.36,0.00040346,2]
[341067635,1730322632810,-150.0,0.00040425,7]
[341067636,1730322632820,-600.0,0.00040426,2]
[341067637,1730322632829,-252.7,0.00040498,2]
[341067638,1730322632838,-159.33,0.0004052,2]
[341067639,1730322632849,-14782.2,0.00040527,2]
[341067640,1730322632858,-302.81,0.00040583,2]
[341067641,1730322632868,-17656.4408,0.000409,2]
[341067650,1730322632995,-818.8,0.00040966,2]
[341067652,1730322633005,-400.0,0.00041028,2]
[341067654,1730322633014,-150.0,0.00041096,2]
[341067656,1730322633023,-157.0,0.00041096,2]
[341067657,1730322633033,-350.0,0.000411,2]
[341067658,1730322633042,-395.32926581,0.00041798,2]
[341067659,1730322633051,-2161.6787,0.000419,2]
[341067660,1730322633060,-1432.8806,0.000419,2]
[341067661,1730322633070,-362.26618386,0.000419,15]
[341067662,1730322633079,-167.51263919,0.000419,28]
[341067663,1730322633088,-2770.392,0.000419,2]
[341067664,1730322633098,-500.0,0.00041973,7]
[341067665,1730322633108,-500.0,0.00041999,31]
[341067666,1730322633117,-500.0,0.00041999,31]
[341067667,1730322633126,-50000.0,0.00042,12]
[341067668,1730322633136,-8420.94291824,0.00042,17]
[341067669,1730322633147,-16285.77815546,0.00042,17]
[341067670,1730322633156,-1363.22184633,0.00042,16]
[341067672,1730322638525,-1000.0,0.000411,2]
[341067673,1730322638535,-10880.87957243,0.00042,16]
[341067674,1730322638563,-801.48200001,0.00042,16]
[341067675,1730322638599,-8005.00676,0.00042,16]
[341067676,1730322638722,-73183.23303609,0.00042,16]
[341067683,1730322640407,-3646.2279,0.00042,16]
[341067684,1730322640541,-2465.63818846,0.00042,16]
[341067685,1730322640553,-267.64,0.00042,16]
[341067686,1730322640566,-4322.95608005,0.00042,16]
[341067687,1730322640577,-4019.09127962,0.00042,16]
[341067688,1730322640588,-315.6,0.00042,16]
[341067689,1730322640681,-18241.97375,0.00042,16]
[341067690,1730322640723,-400.0,0.00042,16]
[341067695,1730322644364,-500.0,0.00041973,2]
[341067697,1730322644374,-13209.15856002,0.00042,16]
[341067723,1730322644618,-21734.43775561,0.00042,16]
[341067724,1730322644629,-7379.705,0.00042,16]
[341067734,1730322646412,-673.01835001,0.00042,16]
[341067735,1730322646459,-282.78234949,0.00042,16]
[341067736,1730322646578,-3581.01432309,0.00042,16]
[341067737,1730322646702,-6650.78222856,0.00042,16]
[341067738,1730322646717,-3642.0556,0.00042,16]
[341067739,1730322646747,-36410.68105368,0.00042,16]
[341067747,1730322653884,150.0,0.00017605,2]
[341067753,1730322783360,179.41,0.00019178,2]
[341067755,1730322801043,162.14,0.00015342,2]
[341067756,1730323119237,154.75,0.00018277,2]
[341067758,1730323394317,158.65,0.00015342,2]
[341067759,1730323478211,150.0,0.00025,2]
[341067760,1730323508368,2499536.6,0.00016,2]
[341067761,1730323508398,166662.86,0.00016,2]
[341067762,1730323508436,813106.72825979,0.00016,2]
[341067767,1730323556878,2053.34163273,0.000159,2]
[341067768,1730323593893,510.47048576,0.00015,2]
[341067769,1730323684915,10642.88883161,0.000145,3]
[341067770,1730323687296,5191197.36162466,0.00015,2]
[341067820,1730323831674,-1436.0446073,0.000225,2]
[341067821,1730323831684,-2290.43286287,0.000231,2]
[341067822,1730323831694,-637.08252983,0.000232,2]
[341067823,1730323831706,-658.28005769,0.000232,2]
[341067824,1730323831715,-529.23868653,0.0002495,2]
[341067825,1730323831724,-3088.97555386,0.00025,2]
[341067826,1730323831734,-2009.51712398,0.000253,5]
[341067827,1730323831744,-525.468749,0.00026136,2]
[341067828,1730323831753,-1896.53,0.00026268,2]
[341067829,1730323831762,-421.32065725,0.000264,2]
[341067830,1730323831774,-356.27347637,0.00027,7]
[341067831,1730323831786,-641.62552363,0.00027,7]
[341067832,1730323831795,-1127.27447631,0.0003,15]
[341067833,1730323831984,-26994.03397232,0.0003,15]
[341067834,1730323831993,-246.11,0.00030232,2]
[341067835,1730323832003,-312.0,0.00030258,2]
[341067836,1730323832012,-725.0,0.00030259,2]
[341067837,1730323832025,-310.17111382,0.000314,2]
[341067838,1730323832035,-500.0,0.00031473,2]
[341067839,1730323832045,-753.92,0.0003149,3]
[341067840,1730323832054,-272.71887389,0.0003149,2]
[341067841,1730323832064,-748.18268313,0.000315,30]
[341067843,1730323837676,-1255.04180702,0.000314,4]
[341067844,1730323837686,-369675.3699488,0.000315,30]
[341067845,1730323837870,-534.68917223,0.000315,30]
[341067846,1730323837882,-519.07829482,0.000315,30]
[341067847,1730323837972,-607896.48270851,0.000315,30]
[341067848,1730323837984,-757.25070126,0.000315,30]
[341067849,1730323838091,-312.27156458,0.000315,30]
[341067851,1730323838103,-253.039,0.000315,30]
[341067857,1730323839621,-320.91406874,0.000301,2]
[341067858,1730323839633,-489.08593126,0.000301,2]
[341067859,1730323839643,-235.04406874,0.00031499,2]
[341067860,1730323839656,-264.95593126,0.00031499,2]
[341067861,1730323839666,-7723.14406871,0.000315,30]
[341067862,1730323839676,-205736.80428602,0.000315,30]
[341067863,1730323839688,-328.56454123,0.000315,30]
[341067864,1730323839732,-500.0,0.00031499,2]
[341067865,1730323839741,-2902.58269194,0.000315,30]
[341067866,1730323839752,-639.318,0.000315,30]
[341067867,1730323839933,-3162.60000008,0.000315,30]
[341067868,1730323839945,-3475.79030406,0.000315,30]
[341067869,1730323839956,-4786.36046934,0.000315,30]
[341067882,1730323842658,-271.0542456,0.000315,30]
[341067883,1730323842669,-2178.48,0.000315,30]
[341067884,1730323842687,-734.83772515,0.000315,30]
[341067885,1730323842817,-28664.68211708,0.000315,30]
[341067886,1730323842831,-259.86026,0.000315,30]
[341067890,1730323845686,-225993.51900406,0.000315,30]
[341067891,1730323845696,-186.88819191,0.000315,7]
[341067892,1730323845706,-2551.47,0.00031886,2]
[341067893,1730323845715,-250.0,0.00032071,2]
[341067894,1730323845723,-500.0,0.00033027,2]
[341067895,1730323845732,-310.17111382,0.00033264,2]
[341067896,1730323845742,-2102.46400699,0.00034,3]
[341067897,1730323845751,-200.0,0.00034818,2]
[341067898,1730323845760,-310.17111382,0.00035127,2]
[341067899,1730323845769,-230.34,0.00035222,2]
[341067900,1730323845778,-215.32,0.00035614,2]
[341067901,1730323845787,-500.0,0.00035973,5]
[341067902,1730323845796,-272.71887389,0.0003599,2]
[341067903,1730323845805,-487999.26893884,0.00036,2]
[341067904,1730323845815,-25882.80705524,0.00036,120]
[341067905,1730323845824,-30036.2880938,0.00036,2]
[341067906,1730323845834,-1500.0,0.00036417,2]
[341067907,1730323845843,-50085.02309191,0.000368,2]
[341067908,1730323845853,-215.32,0.00036874,2]
[341067909,1730323845862,-1000.0,0.00036952,2]
[341067910,1730323845873,-169.93,0.00036981,2]
[341067911,1730323845882,-310.17111382,0.00036991,2]
[341067912,1730323845893,-150.0,0.00037181,2]
[341067913,1730323845903,-21082.84458982,0.00037257,2]
[341067914,1730323845912,-200.0,0.00037327,2]
[341067915,1730323845922,-250.0,0.00037397,120]
[341067916,1730323845932,-250.0,0.00037435,2]
[341067917,1730323845942,-150.0,0.00037474,7]
[341067918,1730323845953,-1159.59,0.00037474,2]
[341067919,1730323845963,-918.08,0.00037547,120]
[341067920,1730323845974,-2264.05,0.00037583,2]
[341067921,1730323845984,-3541.84,0.00037704,2]
[341067922,1730323845994,-4595.77,0.00037704,2]
[341067923,1730323846003,-480.0,0.00037723,2]
[341067924,1730323846013,-150.99,0.00037723,2]
[341067925,1730323846023,-23900.0,0.0003779,2]
[341067926,1730323846033,-165.67511494,0.000378,2]
[341067927,1730323846043,-538.63859077,0.000379,2]
[341067928,1730323846053,-330.88,0.00037911,2]
[341067929,1730323846063,-150.0,0.0003799,2]
[341067930,1730323846072,-215.32,0.00038134,2]
[341067931,1730323846082,-302.56,0.00038148,2]
[341067932,1730323846091,-500.0,0.00038211,2]
[341067933,1730323846100,-1268.009,0.0003831,2]
[341067934,1730323846110,-2206.0,0.0003831,2]
[341067935,1730323846119,-406.771,0.0003831,2]
[341067936,1730323846128,-814.0,0.0003831,2]
[341067937,1730323846138,-1249.0,0.0003831,2]
[341067938,1730323846147,-451.0,0.0003831,2]
[341067939,1730323846156,-1086.0,0.0003831,2]
[341067940,1730323846165,-1983.0,0.0003831,2]
[341067941,1730323846174,-557.0,0.0003831,2]
[341067942,1730323846184,-496455.78,0.00038356,2]
[341067943,1730323846193,-591.02,0.000384,2]
[341067944,1730323846202,-1500.0,0.0003868,2]
[341067945,1730323846211,-310.17111382,0.00038855,2]
[341067946,1730323846220,-376.6018445,0.00038912,15]
[341067947,1730323846230,-262.718,0.00038912,2]
[341067948,1730323846239,-2500.0,0.00038912,2]
[341067949,1730323846248,-3821.1648,0.00038912,2]
[341067950,1730323846257,-8788.0,0.00039,2]
[341067951,1730323846266,-32754.213,0.00039012,2]
[341067952,1730323846276,-505.7186148,0.00039073,5]
[341067953,1730323846285,-1000.0,0.00039077,2]
[341067954,1730323846294,-362.17,0.000391,30]
[341067955,1730323846303,-169.57,0.00039323,2]
[341067956,1730323846313,-169.57,0.00039373,2]
[341067957,1730323846323,-215.32,0.00039393,2]
[341067958,1730323846333,-169.57,0.00039422,2]
[341067959,1730323846345,-247.53,0.00039429,54]
[341067960,1730323846355,-179.34,0.00039429,120]
[341067961,1730323846365,-169.57,0.00039471,2]
[341067962,1730323846374,-169.57,0.0003952,2]
[341067963,1730323846383,-185.92,0.00039797,120]
[341067964,1730323846392,-196.7851,0.000399,2]
[341067965,1730323846402,-376.60184441,0.00039955,15]
[341067966,1730323846411,-65800.0,0.0004,2]
[341067967,1730323846421,-15177.14541332,0.0004,15]
[341067968,1730323846431,-154.13,0.0004,2]
[341067969,1730323846442,-154.13,0.0004,2]
[341067970,1730323846450,-154.13,0.0004,2]
[341067971,1730323846460,-154.13,0.0004,2]
[341067972,1730323846469,-154.13,0.0004,2]
[341067973,1730323846478,-154.13,0.0004,2]
[341067974,1730323846487,-154.13,0.0004,2]
[341067975,1730323846496,-154.13,0.0004,2]
[341067976,1730323846505,-154.13,0.0004,2]
[341067977,1730323846514,-154.13,0.0004,2]
[341067978,1730323846523,-154.13,0.0004,2]
[341067979,1730323846534,-154.13,0.0004,2]
[341067980,1730323846543,-154.13,0.0004,2]
[341067981,1730323846551,-154.13,0.0004,2]
[341067982,1730323846561,-302.56,0.00040055,2]
[341067983,1730323846569,-520.0,0.00040391,2]
[341067984,1730323846579,-215.32,0.00040653,2]
[341067985,1730323846588,-164.9,0.00040762,2]
[341067986,1730323846598,-878.49332597,0.00040762,2]
[341067987,1730323846606,-372.85039552,0.00040763,2]
[341067988,1730323846616,-2973.53334707,0.00040763,2]
[341067989,1730323846625,-6582.91719288,0.00040763,2]
[341067990,1730323846634,-154.13,0.00040853,2]
[341067991,1730323846643,-1199.7552,0.00040862,2]
[341067992,1730323846652,-795.8648,0.00040862,2]
[341067993,1730323846661,-2692.65,0.00040863,2]
[341067994,1730323846671,-86310.0307,0.00040863,2]
[341067995,1730323846680,-10189.6275,0.00040863,2]
[341067996,1730323846689,-3502.8747,0.00040863,2]
[341067997,1730323846698,-792.9418,0.00040863,2]
[341067998,1730323846708,-12380.9312,0.00040863,2]
[341067999,1730323846717,-920.2787,0.00040863,2]
[341068000,1730323846726,-167.49,0.00040898,2]
[341068001,1730323846735,-1500.0,0.00040944,2]
[341068002,1730323846745,-8311.9104242,0.00040962,2]
[341068003,1730323846754,-502.12751249,0.00040973,5]
[341068004,1730323846764,-376.60184441,0.00040998,15]
[341068005,1730323846773,-943.27491179,0.00041095,120]
[341068006,1730323846784,-157.0,0.00041096,2]
[341068007,1730323846795,-150.0,0.00041096,2]
[341068008,1730323846804,-200.0,0.000411,2]
[341068009,1730323846814,-3206.0,0.000411,2]
[341068010,1730323846824,-500.0,0.000411,2]
[341068011,1730323846833,-178.63726725,0.000411,2]
[341068012,1730323846842,-549.0,0.000411,2]
[341068013,1730323846852,-2000.0,0.000411,2]
[341068014,1730323846861,-350.0,0.000411,2]
[341068015,1730323846870,-362.17,0.000411,30]
[341068016,1730323846879,-900.0,0.00041234,31]
[341068017,1730323846889,-1254.0,0.0004131,2]
[341068018,1730323846898,-2204.0,0.0004131,2]
[341068019,1730323846907,-395.81,0.0004131,2]
[341068020,1730323846916,-1980.0,0.0004131,2]
[341068021,1730323846926,-268.47,0.00041363,2]
[341068022,1730323846935,-1109.56857195,0.00041452,10]
[341068023,1730323846945,-17513.2001439,0.0004158,2]
[341068024,1730323846954,-154.13,0.0004179,2]
[341068025,1730323846964,-272.71887389,0.0004179,2]
[341068026,1730323846973,-162.18717584,0.000418,5]
[341068027,1730323846983,-66630.9450136,0.000418,30]
[341068028,1730323846993,-20691.16091282,0.0004188,2]
[341068029,1730323847002,-154.13,0.0004189,2]
[341068030,1730323847013,-17361.1973,0.000419,2]
[341068031,1730323847024,-5143.887485,0.000419,2]
[341068032,1730323847034,-100000.0,0.000419,2]
[341068033,1730323847043,-18410.6081,0.000419,2]
[341068034,1730323847054,-384.0,0.000419,7]
[341068035,1730323847063,-58623.4359,0.000419,2]
[341068036,1730323847074,-11568.7841,0.000419,2]
[341068037,1730323847083,-478.0002,0.000419,2]
[341068038,1730323847094,-4661.5712,0.000419,2]
[341068039,1730323847105,-2909.02,0.00041902,2]
[341068040,1730323847114,-22256.59,0.00041902,2]
[341068041,1730323847124,-215.32,0.00041912,2]
[341068042,1730323847133,-302.56,0.00041963,2]
[341068043,1730323847144,-48219.1223037,0.00041969,7]
[341068044,1730323847154,-154.13,0.00041989,2]
[341068045,1730323847163,-154.13,0.0004199,2]
[341068046,1730323847172,-154.13,0.0004199,2]
[341068047,1730323847181,-500.0,0.00041999,2]
[341068048,1730323847190,-1037.3155624,0.00041999,2]
[341068049,1730323847199,-4996.3888013,0.00041999,2]
[341068050,1730323847208,-300.02,0.00041999,2]
[341068051,1730323847219,-1536.85618048,0.00041999,2]
[341068052,1730323847228,-1813.38,0.00041999,120]
[341068053,1730323847237,-13426.1503689,0.00041999,2]
[341068054,1730323847247,-259847.0593486,0.00042,2]
[341068055,1730323847257,-576.0,0.00042,2]
[341068056,1730323847267,-1000.0,0.00042,12]
[341068057,1730323847276,-4607.95047172,0.00042,30]
[341068058,1730323847290,-560.85,0.00042,60]
[341068059,1730323847304,-1540.44834065,0.00042,120]
[341068060,1730323847313,-200.0,0.00042,7]
[341068061,1730323847322,-56959.22592111,0.00042,2]
[341068062,1730323847331,-8867.27978195,0.00042,2]
[341068063,1730323847341,-40335.12535341,0.00042,2]
[341068064,1730323847351,-1315.16850299,0.0004201,2]
[341068065,1730323847361,-376.60184441,0.00042041,15]
[341068066,1730323847369,-150.0,0.00042177,2]
[341068067,1730323847378,-878.49332595,0.00042306,2]
[341068068,1730323847389,-372.8503955,0.00042315,2]
[341068069,1730323847397,-2973.53334705,0.00042315,2]
[341068070,1730323847406,-6582.91719287,0.00042315,2]
[341068071,1730323847416,-154.13,0.0004237,2]
[341068072,1730323847425,-116028.830945,0.0004238,2]
[341068073,1730323847434,-154.13,0.00042411,2]
[341068074,1730323847442,-153.0,0.00042419,31]
[341068075,1730323847451,-153.0,0.00042419,31]
[341068076,1730323847459,-153.0,0.00042419,31]
[341068077,1730323847469,-153.0,0.00042419,31]
[341068078,1730323847480,-153.0,0.00042419,31]
[341068079,1730323847491,-153.0,0.00042419,31]
[341068080,1730323847501,-153.0,0.00042419,31]
[341068081,1730323847511,-153.0,0.00042419,31]
[341068082,1730323847521,-153.0,0.00042419,31]
[341068083,1730323847530,-153.0,0.00042419,31]
[341068084,1730323847539,-153.0,0.00042419,31]
[341068085,1730323847548,-153.0,0.00042419,31]
[341068086,1730323847557,-153.0,0.00042419,31]
[341068087,1730323847566,-200.0,0.0004242,7]
[341068088,1730323847575,-20000.0,0.00042421,4]
[341068089,1730323847584,-480.0,0.00042439,2]
[341068090,1730323847704,-46000.0,0.000425,4]
[341068091,1730323847714,-1813.38,0.00042684,120]
[341068092,1730323847723,-153.75,0.0004274,2]
[341068093,1730323847732,-1993.80517544,0.00042754,120]
[341068094,1730323847742,-362.17,0.000429,30]
[341068095,1730323847751,-154.13,0.0004299,2]
[341068096,1730323847760,-217.33538161,0.00042999,5]
[341068097,1730323847770,-3000.0,0.00043,2]
[341068098,1730323847780,-3000.0,0.00043,2]
[341068099,1730323847789,-3000.0,0.00043,2]
[341068100,1730323847798,-3000.0,0.00043,2]
[341068101,1730323847807,-3000.0,0.00043,2]
[341068102,1730323847817,-1189.7,0.00043,2]
[341068103,1730323847827,-62412.14108057,0.00043,2]
[341068104,1730323847836,-10112.0,0.00043,2]
[341068105,1730323847845,-1000.0,0.00043,12]
[341068106,1730323847854,-171.52624857,0.00043,120]
[341068107,1730323847863,-7897.83549436,0.00043,15]
[341068108,1730323847873,-2267.54893478,0.00043,30]
[341068109,1730323847882,-181.57763456,0.00043,7]
[341068110,1730323847892,-654.51023178,0.00043,2]
[341068111,1730323847901,-376.60184441,0.00043084,15]
[341068112,1730323847910,-215.32,0.00043172,2]
[341068113,1730323847919,-153.0,0.00043193,31]
[341068114,1730323847928,-153.0,0.00043195,31]
[341068115,1730323847937,-153.0,0.00043195,31]
[341068116,1730323847946,-153.0,0.00043195,31]
[341068117,1730323847956,-153.0,0.00043195,31]
[341068118,1730323847966,-1500.0,0.00043208,2]
[341068119,1730323847975,-150.0,0.00043259,2]
[341068120,1730323847985,-299.84985002,0.00043259,2]
[341068121,1730323847994,-150.0,0.00043259,2]
[341068122,1730323848004,-150.0,0.00043259,2]
[341068123,1730323848013,-150.0,0.00043259,2]
[341068124,1730323848022,-150.0,0.00043259,2]
[341068125,1730323848033,-167.02,0.0004327,2]
[341068126,1730323848042,-217.0,0.000433,2]
[341068127,1730323848051,-1813.38,0.00043369,120]
[341068128,1730323848060,-268.47,0.00043431,2]
[341068129,1730323848069,-15249.93327348,0.000435,2]
[341068130,1730323848078,-150.0,0.00043533,2]
[341068131,1730323848087,-150.0,0.00043562,2]
[341068132,1730323848096,-560.85,0.000436,60]
[341068133,1730323848105,-4114.7456867,0.00043644,2]
[341068134,1730323848114,-156.35065037,0.00043651,2]
[341068135,1730323848123,-500.0,0.00043657,4]
[341068136,1730323848133,-500.0,0.00043666,4]
[341068137,1730323848142,-500.0,0.00043675,4]
[341068138,1730323848151,-500.0,0.00043684,4]
[341068139,1730323848160,-500.0,0.00043687,4]